{"text_format":"1","workbook":"xlsx","n_sheets":5,"sheets":["Home","Database","Support","Check IN","Sheet1"],"not_rendered":{"charts":0,"images":0,"macros":1,"external_links":1,"defined_names":5,"comments":0,"pivot_tables":0},"unopened":[],"bounds":{"document_bytes":16777216,"sheet_cells":100000,"rows_first":2000,"rows_last":500,"rows_between":2000,"halvings":0,"cell_chars":16384,"cell_head_chars":4096},"cells_cut":0,"cells_raw":0,"read":"whole","date_system":"1900"}

{"sheet":"Home","index":0,"n_rows":0,"n_cols":0,"rows_kept":0,"cut":false,"hidden":false,"merged":[[3,4,5,14]]}

{"sheet":"Database","index":1,"n_rows":5,"n_cols":16,"rows_kept":5,"cut":false,"hidden":false,"merged":[]}
["S.NO","Name","Addres","Arrival","Deparue","Days","Adult","Room","Meals","Status","Room Type","Reat P.P","Charege","Total","Amount","Balance"]
[{"$f":"ROW()-1","v":1},"Mohamed Ahmed","Egypt","2023-02-20","2023-02-23",2,2,"Room102","B.B","Check IN","Double",null,102,100,10000,10000]
[2,"Ahmed Elsayd","egypt - cairo","2023-02-20","2023-02-24",9,1,"Room 103","ALL SOFT","Check IN","Single",null,100,900,100,800]
[3,"Ali  Ahmed","egypt","2023-02-20","2023-02-25",5,1,"Room 104","B.B","Check IN","Double",null,10,50,0,50]
[{"$f":"ROW()-1","v":4},"IBRAHIM","EGYBT","2022-02-21","2023-02-26",3,2,"Room 108","B.B","Check IN","Double",null,12,300,15,285]

{"sheet":"Support","index":2,"n_rows":17,"n_cols":4,"rows_kept":17,"cut":false,"hidden":false,"merged":[]}
["Room","Meals","status","Room Type"]
["Room 101","B.O","Reservation","Single"]
["Room 102","B.B","Check IN","Double"]
["Room 103","H.B","Check OUT"]
["Room 104","F.B"]
["Room 105","ALL SOFT"]
["Room 106","ALL HARD"]
["Room 107"]
["Room 108"]
["Room 109"]
["Room 110"]
["Room 111"]
["Room 112"]
["Room 113"]
["Room 114"]
["Room 115"]
["Room 116"]

{"sheet":"Check IN","index":3,"n_rows":0,"n_cols":0,"rows_kept":0,"cut":false,"hidden":false,"merged":[]}

{"sheet":"Sheet1","index":4,"n_rows":181,"n_cols":24,"rows_kept":181,"cut":false,"hidden":false,"merged":[]}
["Room Number","Floor","Room Type","No.of.Pax","Room Statuse","Reat /Day",null,null,null,null,null,null,null,null,null,null,null,null,null,null,null,null,null,"Room Available "]
["Room101","Ground","Double",1,{"$f":"IF(OR(A2=\"\",C2=\"\"),\"\",IF(COUNTIFS(Database!$H$2:$H$6000,A2,Database!$K$2:$K$6000,C2,Database!$D$2:$D$6000,\"<=\"&TODAY(),Database!$E$2:$E$6000,\">\"&TODAY()),\"booked\",\"Available \"))","v":"Available "},200,null,null,null,null,null,null,null,null,null,null,null,null,null,null,null,null,null,{"$f":"IF(E2=\"Available \",A2,\"\")","v":"Room101"}]
["Room102","Ground","Double",{"$f":"D2+1","v":2},{"$f":"IF(OR(A3=\"\",C3=\"\"),\"\",IF(COUNTIFS(Database!$H$2:$H$6000,A3,Database!$K$2:$K$6000,C3,Database!$D$2:$D$6000,\"<=\"&TODAY(),Database!$E$2:$E$6000,\">\"&TODAY()),\"Booked\",\"Available \"))","v":"Booked"},{"$f":"+F2+50","v":250},null,null,null,null,null,null,null,null,null,null,null,null,null,null,null,null,null,""]
["Room 103","Ground","Single",{"$f":"D3+1","v":3},{"$f":"IF(OR(A4=\"\",C4=\"\"),\"\",IF(COUNTIFS(Database!$H$2:$H$6000,A4,Database!$K$2:$K$6000,C4,Database!$D$2:$D$6000,\"<=\"&TODAY(),Database!$E$2:$E$6000,\">\"&TODAY()),\"Booked\",\"Available \"))","v":"Booked"},{"$f":"+F3+50","v":300},null,null,null,null,null,null,null,null,null,null,null,null,null,null,null,null,null,""]
["Room 104","Ground","Double",4,{"$f":"IF(OR(A5=\"\",C5=\"\"),\"\",IF(COUNTIFS(Database!$H$2:$H$6000,A5,Database!$K$2:$K$6000,C5,Database!$D$2:$D$6000,\"<=\"&TODAY(),Database!$E$2:$E$6000,\">\"&TODAY()),\"Booked\",\"Available \"))","v":"Booked"},{"$f":"+F4+50","v":350},null,null,null,null,null,null,null,null,null,null,null,null,null,null,null,null,null,""]
["Room 105","Ground","Single",5,{"$f":"IF(OR(A6=\"\",C6=\"\"),\"\",IF(COUNTIFS(Database!$H$2:$H$6000,A6,Database!$K$2:$K$6000,C6,Database!$D$2:$D$6000,\"<=\"&TODAY(),Database!$E$2:$E$6000,\">\"&TODAY()),\"booked\",\"Available \"))","v":"Available "},400,null,null,null,null,null,null,null,null,null,null,null,null,null,null,null,null,null,"Room 105"]
["Room 106","Ground","Double",6,{"$f":"IF(OR(A7=\"\",C7=\"\"),\"\",IF(COUNTIFS(Database!$H$2:$H$6000,A7,Database!$K$2:$K$6000,C7,Database!$D$2:$D$6000,\"<=\"&TODAY(),Database!$E$2:$E$6000,\">\"&TODAY()),\"booked\",\"Available \"))","v":"Available "},450,null,null,null,null,null,null,null,null,null,null,null,null,null,null,null,null,null,"Room 106"]
["Room 107","Ground","Single",7,{"$f":"IF(OR(A8=\"\",C8=\"\"),\"\",IF(COUNTIFS(Database!$H$2:$H$6000,A8,Database!$K$2:$K$6000,C8,Database!$D$2:$D$6000,\"<=\"&TODAY(),Database!$E$2:$E$6000,\">\"&TODAY()),\"booked\",\"Available \"))","v":"Available "},500,null,null,null,null,null,null,null,null,null,null,null,null,null,null,null,null,null,"Room 107"]
["Room 108","Ground","Double",8,{"$f":"IF(OR(A9=\"\",C9=\"\"),\"\",IF(COUNTIFS(Database!$H$2:$H$6000,A9,Database!$K$2:$K$6000,C9,Database!$D$2:$D$6000,\"<=\"&TODAY(),Database!$E$2:$E$6000,\">\"&TODAY()),\"booked\",\"Available \"))","v":"booked"},550,null,null,null,null,null,null,null,null,null,null,null,null,null,null,null,null,null,""]
["Room 109","Ground","Single",9,{"$f":"IF(OR(A10=\"\",C10=\"\"),\"\",IF(COUNTIFS(Database!$H$2:$H$6000,A10,Database!$K$2:$K$6000,C10,Database!$D$2:$D$6000,\"<=\"&TODAY(),Database!$E$2:$E$6000,\">\"&TODAY()),\"booked\",\"Available \"))","v":"Available "},600,null,null,null,null,null,null,null,null,null,null,null,null,null,null,null,null,null,"Room 109"]
["Room 110","Ground","Double",10,{"$f":"IF(OR(A11=\"\",C11=\"\"),\"\",IF(COUNTIFS(Database!$H$2:$H$6000,A11,Database!$K$2:$K$6000,C11,Database!$D$2:$D$6000,\"<=\"&TODAY(),Database!$E$2:$E$6000,\">\"&TODAY()),\"booked\",\"Available \"))","v":"Available "},650,null,null,null,null,null,null,null,null,null,null,null,null,null,null,null,null,null,"Room 110"]
["Room 111","1st floor","Single",11,{"$f":"IF(OR(A12=\"\",C12=\"\"),\"\",IF(COUNTIFS(Database!$H$2:$H$6000,A12,Database!$K$2:$K$6000,C12,Database!$D$2:$D$6000,\"<=\"&TODAY(),Database!$E$2:$E$6000,\">\"&TODAY()),\"booked\",\"Available \"))","v":"Available "},700,null,null,null,null,null,null,null,null,null,null,null,null,null,null,null,null,null,"Room 111"]
["Room 112","1st floor","Double",12,{"$f":"IF(OR(A13=\"\",C13=\"\"),\"\",IF(COUNTIFS(Database!$H$2:$H$6000,A13,Database!$K$2:$K$6000,C13,Database!$D$2:$D$6000,\"<=\"&TODAY(),Database!$E$2:$E$6000,\">\"&TODAY()),\"booked\",\"Available \"))","v":"Available "},750,null,null,null,null,null,null,null,null,null,null,null,null,null,null,null,null,null,"Room 112"]
["Room 114","1st floor","Single",13,{"$f":"IF(OR(A14=\"\",C14=\"\"),\"\",IF(COUNTIFS(Database!$H$2:$H$6000,A14,Database!$K$2:$K$6000,C14,Database!$D$2:$D$6000,\"<=\"&TODAY(),Database!$E$2:$E$6000,\">\"&TODAY()),\"booked\",\"Available \"))","v":"Available "},800,null,null,null,null,null,null,null,null,null,null,null,null,null,null,null,null,null,"Room 114"]
["Room 115","1st floor","Double",14,{"$f":"IF(OR(A15=\"\",C15=\"\"),\"\",IF(COUNTIFS(Database!$H$2:$H$6000,A15,Database!$K$2:$K$6000,C15,Database!$D$2:$D$6000,\"<=\"&TODAY(),Database!$E$2:$E$6000,\">\"&TODAY()),\"booked\",\"Available \"))","v":"Available "},850,null,null,null,null,null,null,null,null,null,null,null,null,null,null,null,null,null,"Room 115"]
["Room 116","1st floor","Single",15,{"$f":"IF(OR(A16=\"\",C16=\"\"),\"\",IF(COUNTIFS(Database!$H$2:$H$6000,A16,Database!$K$2:$K$6000,C16,Database!$D$2:$D$6000,\"<=\"&TODAY(),Database!$E$2:$E$6000,\">\"&TODAY()),\"booked\",\"Available \"))","v":"Available "},900,null,null,null,null,null,null,null,null,null,null,null,null,null,null,null,null,null,"Room 116"]
["Room 117","1st floor","Double",16,{"$f":"IF(OR(A17=\"\",C17=\"\"),\"\",IF(COUNTIFS(Database!$H$2:$H$6000,A17,Database!$K$2:$K$6000,C17,Database!$D$2:$D$6000,\"<=\"&TODAY(),Database!$E$2:$E$6000,\">\"&TODAY()),\"booked\",\"Available \"))","v":"Available "},950,null,null,null,null,null,null,null,null,null,null,null,null,null,null,null,null,null,"Room 117"]
["Room 118","1st floor","Single",17,{"$f":"IF(OR(A18=\"\",C18=\"\"),\"\",IF(COUNTIFS(Database!$H$2:$H$6000,A18,Database!$K$2:$K$6000,C18,Database!$D$2:$D$6000,\"<=\"&TODAY(),Database!$E$2:$E$6000,\">\"&TODAY()),\"booked\",\"Available \"))","v":"Available "},1000,null,null,null,null,null,null,null,null,null,null,null,null,null,null,null,null,null,"Room 118"]
["Room 119","1st floor","Double",18,{"$f":"IF(OR(A19=\"\",C19=\"\"),\"\",IF(COUNTIFS(Database!$H$2:$H$6000,A19,Database!$K$2:$K$6000,C19,Database!$D$2:$D$6000,\"<=\"&TODAY(),Database!$E$2:$E$6000,\">\"&TODAY()),\"booked\",\"Available \"))","v":"Available "},1050,null,null,null,null,null,null,null,null,null,null,null,null,null,null,null,null,null,"Room 119"]
["Room 120","1st floor","Single",19,{"$f":"IF(OR(A20=\"\",C20=\"\"),\"\",IF(COUNTIFS(Database!$H$2:$H$6000,A20,Database!$K$2:$K$6000,C20,Database!$D$2:$D$6000,\"<=\"&TODAY(),Database!$E$2:$E$6000,\">\"&TODAY()),\"booked\",\"Available \"))","v":"Available "},1100,null,null,null,null,null,null,null,null,null,null,null,null,null,null,null,null,null,"Room 120"]
["Room 121","2nd floor","Double",20,{"$f":"IF(OR(A21=\"\",C21=\"\"),\"\",IF(COUNTIFS(Database!$H$2:$H$6000,A21,Database!$K$2:$K$6000,C21,Database!$D$2:$D$6000,\"<=\"&TODAY(),Database!$E$2:$E$6000,\">\"&TODAY()),\"booked\",\"Available \"))","v":"Available "},1150,null,null,null,null,null,null,null,null,null,null,null,null,null,null,null,null,null,"Room 121"]
["Room 122","2nd floor","Single",21,{"$f":"IF(OR(A22=\"\",C22=\"\"),\"\",IF(COUNTIFS(Database!$H$2:$H$6000,A22,Database!$K$2:$K$6000,C22,Database!$D$2:$D$6000,\"<=\"&TODAY(),Database!$E$2:$E$6000,\">\"&TODAY()),\"booked\",\"Available \"))","v":"Available "},1200,null,null,null,null,null,null,null,null,null,null,null,null,null,null,null,null,null,"Room 122"]
["Room 123","2nd floor","Double",2,{"$f":"IF(OR(A23=\"\",C23=\"\"),\"\",IF(COUNTIFS(Database!$H$2:$H$6000,A23,Database!$K$2:$K$6000,C23,Database!$D$2:$D$6000,\"<=\"&TODAY(),Database!$E$2:$E$6000,\">\"&TODAY()),\"booked\",\"Available \"))","v":"Available "},1250,null,null,null,null,null,null,null,null,null,null,null,null,null,null,null,null,null,"Room 123"]
["Room 124","2nd floor","Single",1,{"$f":"IF(OR(A24=\"\",C24=\"\"),\"\",IF(COUNTIFS(Database!$H$2:$H$6000,A24,Database!$K$2:$K$6000,C24,Database!$D$2:$D$6000,\"<=\"&TODAY(),Database!$E$2:$E$6000,\">\"&TODAY()),\"booked\",\"Available \"))","v":"Available "},1300,null,null,null,null,null,null,null,null,null,null,null,null,null,null,null,null,null,"Room 124"]
["Room 125","2nd floor","Double",2,{"$f":"IF(OR(A25=\"\",C25=\"\"),\"\",IF(COUNTIFS(Database!$H$2:$H$6000,A25,Database!$K$2:$K$6000,C25,Database!$D$2:$D$6000,\"<=\"&TODAY(),Database!$E$2:$E$6000,\">\"&TODAY()),\"booked\",\"Available \"))","v":"Available "},1350,null,null,null,null,null,null,null,null,null,null,null,null,null,null,null,null,null,"Room 125"]
["Room 126","2nd floor","Single",1,{"$f":"IF(OR(A26=\"\",C26=\"\"),\"\",IF(COUNTIFS(Database!$H$2:$H$6000,A26,Database!$K$2:$K$6000,C26,Database!$D$2:$D$6000,\"<=\"&TODAY(),Database!$E$2:$E$6000,\">\"&TODAY()),\"booked\",\"Available \"))","v":"Available "},1400,null,null,null,null,null,null,null,null,null,null,null,null,null,null,null,null,null,"Room 126"]
["Room 127","2nd floor","Double",2,{"$f":"IF(OR(A27=\"\",C27=\"\"),\"\",IF(COUNTIFS(Database!$H$2:$H$6000,A27,Database!$K$2:$K$6000,C27,Database!$D$2:$D$6000,\"<=\"&TODAY(),Database!$E$2:$E$6000,\">\"&TODAY()),\"booked\",\"Available \"))","v":"Available "},1450,null,null,null,null,null,null,null,null,null,null,null,null,null,null,null,null,null,"Room 127"]
["Room 128","2nd floor","Single",1,{"$f":"IF(OR(A28=\"\",C28=\"\"),\"\",IF(COUNTIFS(Database!$H$2:$H$6000,A28,Database!$K$2:$K$6000,C28,Database!$D$2:$D$6000,\"<=\"&TODAY(),Database!$E$2:$E$6000,\">\"&TODAY()),\"booked\",\"Available \"))","v":"Available "},1500,null,null,null,null,null,null,null,null,null,null,null,null,null,null,null,null,null,"Room 128"]
["Room 129","2nd floor","Double",2,{"$f":"IF(OR(A29=\"\",C29=\"\"),\"\",IF(COUNTIFS(Database!$H$2:$H$6000,A29,Database!$K$2:$K$6000,C29,Database!$D$2:$D$6000,\"<=\"&TODAY(),Database!$E$2:$E$6000,\">\"&TODAY()),\"booked\",\"Available \"))","v":"Available "},1550,null,null,null,null,null,null,null,null,null,null,null,null,null,null,null,null,null,"Room 129"]
["Room 130","2nd floor","Single",1,{"$f":"IF(OR(A30=\"\",C30=\"\"),\"\",IF(COUNTIFS(Database!$H$2:$H$6000,A30,Database!$K$2:$K$6000,C30,Database!$D$2:$D$6000,\"<=\"&TODAY(),Database!$E$2:$E$6000,\">\"&TODAY()),\"booked\",\"Available \"))","v":"Available "},1600,null,null,null,null,null,null,null,null,null,null,null,null,null,null,null,null,null,"Room 130"]
[null,null,null,null,null,null,null,null,null,null,null,null,null,null,null,null,null,null,null,null,null,null,null,""]
[null,null,null,null,null,null,null,null,null,null,null,null,null,null,null,null,null,null,null,null,null,null,null,""]
[null,null,null,null,null,null,null,null,null,null,null,null,null,null,null,null,null,null,null,null,null,null,null,""]
[null,null,null,null,null,null,null,null,null,null,null,null,null,null,null,null,null,null,null,null,null,null,null,{"$f":"IF(E34=\"Available \",A34,\"\")","v":""}]
[null,null,null,null,null,null,null,null,null,null,null,null,null,null,null,null,null,null,null,null,null,null,null,""]
[null,null,null,null,null,null,null,null,null,null,null,null,null,null,null,null,null,null,null,null,null,null,null,""]
[null,null,null,null,null,null,null,null,null,null,null,null,null,null,null,null,null,null,null,null,null,null,null,""]
[null,null,null,null,null,null,null,null,null,null,null,null,null,null,null,null,null,null,null,null,null,null,null,""]
[null,null,null,null,null,null,null,null,null,null,null,null,null,null,null,null,null,null,null,null,null,null,null,""]
[null,null,null,null,null,null,null,null,null,null,null,null,null,null,null,null,null,null,null,null,null,null,null,""]
[null,null,null,null,null,null,null,null,null,null,null,null,null,null,null,null,null,null,null,null,null,null,null,""]
[null,null,null,null,null,null,null,null,null,null,null,null,null,null,null,null,null,null,null,null,null,null,null,""]
[null,null,null,null,null,null,null,null,null,null,null,null,null,null,null,null,null,null,null,null,null,null,null,""]
[null,null,null,null,null,null,null,null,null,null,null,null,null,null,null,null,null,null,null,null,null,null,null,""]
[null,null,null,null,null,null,null,null,null,null,null,null,null,null,null,null,null,null,null,null,null,null,null,""]
[null,null,null,null,null,null,null,null,null,null,null,null,null,null,null,null,null,null,null,null,null,null,null,""]
[null,null,null,null,null,null,null,null,null,null,null,null,null,null,null,null,null,null,null,null,null,null,null,""]
[null,null,null,null,null,null,null,null,null,null,null,null,null,null,null,null,null,null,null,null,null,null,null,""]
[null,null,null,null,null,null,null,null,null,null,null,null,null,null,null,null,null,null,null,null,null,null,null,""]
[null,null,null,null,null,null,null,null,null,null,null,null,null,null,null,null,null,null,null,null,null,null,null,""]
[null,null,null,null,null,null,null,null,null,null,null,null,null,null,null,null,null,null,null,null,null,null,null,""]
[null,null,null,null,null,null,null,null,null,null,null,null,null,null,null,null,null,null,null,null,null,null,null,""]
[null,null,null,null,null,null,null,null,null,null,null,null,null,null,null,null,null,null,null,null,null,null,null,""]
[null,null,null,null,null,null,null,null,null,null,null,null,null,null,null,null,null,null,null,null,null,null,null,""]
[null,null,null,null,null,null,null,null,null,null,null,null,null,null,null,null,null,null,null,null,null,null,null,""]
[null,null,null,null,null,null,null,null,null,null,null,null,null,null,null,null,null,null,null,null,null,null,null,""]
[null,null,null,null,null,null,null,null,null,null,null,null,null,null,null,null,null,null,null,null,null,null,null,""]
[null,null,null,null,null,null,null,null,null,null,null,null,null,null,null,null,null,null,null,null,null,null,null,""]
[null,null,null,null,null,null,null,null,null,null,null,null,null,null,null,null,null,null,null,null,null,null,null,""]
[null,null,null,null,null,null,null,null,null,null,null,null,null,null,null,null,null,null,null,null,null,null,null,""]
[null,null,null,null,null,null,null,null,null,null,null,null,null,null,null,null,null,null,null,null,null,null,null,""]
[null,null,null,null,null,null,null,null,null,null,null,null,null,null,null,null,null,null,null,null,null,null,null,""]
[null,null,null,null,null,null,null,null,null,null,null,null,null,null,null,null,null,null,null,null,null,null,null,""]
[null,null,null,null,null,null,null,null,null,null,null,null,null,null,null,null,null,null,null,null,null,null,null,""]
[null,null,null,null,null,null,null,null,null,null,null,null,null,null,null,null,null,null,null,null,null,null,null,""]
[null,null,null,null,null,null,null,null,null,null,null,null,null,null,null,null,null,null,null,null,null,null,null,{"$f":"IF(E66=\"Available \",A66,\"\")","v":""}]
[null,null,null,null,null,null,null,null,null,null,null,null,null,null,null,null,null,null,null,null,null,null,null,""]
[null,null,null,null,null,null,null,null,null,null,null,null,null,null,null,null,null,null,null,null,null,null,null,""]
[null,null,null,null,null,null,null,null,null,null,null,null,null,null,null,null,null,null,null,null,null,null,null,""]
[null,null,null,null,null,null,null,null,null,null,null,null,null,null,null,null,null,null,null,null,null,null,null,""]
[null,null,null,null,null,null,null,null,null,null,null,null,null,null,null,null,null,null,null,null,null,null,null,""]
[null,null,null,null,null,null,null,null,null,null,null,null,null,null,null,null,null,null,null,null,null,null,null,""]
[null,null,null,null,null,null,null,null,null,null,null,null,null,null,null,null,null,null,null,null,null,null,null,""]
[null,null,null,null,null,null,null,null,null,null,null,null,null,null,null,null,null,null,null,null,null,null,null,""]
[null,null,null,null,null,null,null,null,null,null,null,null,null,null,null,null,null,null,null,null,null,null,null,""]
[null,null,null,null,null,null,null,null,null,null,null,null,null,null,null,null,null,null,null,null,null,null,null,""]
[null,null,null,null,null,null,null,null,null,null,null,null,null,null,null,null,null,null,null,null,null,null,null,""]
[null,null,null,null,null,null,null,null,null,null,null,null,null,null,null,null,null,null,null,null,null,null,null,""]
[null,null,null,null,null,null,null,null,null,null,null,null,null,null,null,null,null,null,null,null,null,null,null,""]
[null,null,null,null,null,null,null,null,null,null,null,null,null,null,null,null,null,null,null,null,null,null,null,""]
[null,null,null,null,null,null,null,null,null,null,null,null,null,null,null,null,null,null,null,null,null,null,null,""]
[null,null,null,null,null,null,null,null,null,null,null,null,null,null,null,null,null,null,null,null,null,null,null,""]
[null,null,null,null,null,null,null,null,null,null,null,null,null,null,null,null,null,null,null,null,null,null,null,""]
[null,null,null,null,null,null,null,null,null,null,null,null,null,null,null,null,null,null,null,null,null,null,null,""]
[null,null,null,null,null,null,null,null,null,null,null,null,null,null,null,null,null,null,null,null,null,null,null,""]
[null,null,null,null,null,null,null,null,null,null,null,null,null,null,null,null,null,null,null,null,null,null,null,""]
[null,null,null,null,null,null,null,null,null,null,null,null,null,null,null,null,null,null,null,null,null,null,null,""]
[null,null,null,null,null,null,null,null,null,null,null,null,null,null,null,null,null,null,null,null,null,null,null,""]
[null,null,null,null,null,null,null,null,null,null,null,null,null,null,null,null,null,null,null,null,null,null,null,""]
[null,null,null,null,null,null,null,null,null,null,null,null,null,null,null,null,null,null,null,null,null,null,null,""]
[null,null,null,null,null,null,null,null,null,null,null,null,null,null,null,null,null,null,null,null,null,null,null,""]
[null,null,null,null,null,null,null,null,null,null,null,null,null,null,null,null,null,null,null,null,null,null,null,""]
[null,null,null,null,null,null,null,null,null,null,null,null,null,null,null,null,null,null,null,null,null,null,null,""]
[null,null,null,null,null,null,null,null,null,null,null,null,null,null,null,null,null,null,null,null,null,null,null,""]
[null,null,null,null,null,null,null,null,null,null,null,null,null,null,null,null,null,null,null,null,null,null,null,""]
[null,null,null,null,null,null,null,null,null,null,null,null,null,null,null,null,null,null,null,null,null,null,null,""]
[null,null,null,null,null,null,null,null,null,null,null,null,null,null,null,null,null,null,null,null,null,null,null,""]
[null,null,null,null,null,null,null,null,null,null,null,null,null,null,null,null,null,null,null,null,null,null,null,{"$f":"IF(E98=\"Available \",A98,\"\")","v":""}]
[null,null,null,null,null,null,null,null,null,null,null,null,null,null,null,null,null,null,null,null,null,null,null,""]
[null,null,null,null,null,null,null,null,null,null,null,null,null,null,null,null,null,null,null,null,null,null,null,""]
[null,null,null,null,null,null,null,null,null,null,null,null,null,null,null,null,null,null,null,null,null,null,null,""]
[null,null,null,null,null,null,null,null,null,null,null,null,null,null,null,null,null,null,null,null,null,null,null,""]
[null,null,null,null,null,null,null,null,null,null,null,null,null,null,null,null,null,null,null,null,null,null,null,""]
[null,null,null,null,null,null,null,null,null,null,null,null,null,null,null,null,null,null,null,null,null,null,null,""]
[null,null,null,null,null,null,null,null,null,null,null,null,null,null,null,null,null,null,null,null,null,null,null,""]
[null,null,null,null,null,null,null,null,null,null,null,null,null,null,null,null,null,null,null,null,null,null,null,""]
[null,null,null,null,null,null,null,null,null,null,null,null,null,null,null,null,null,null,null,null,null,null,null,""]
[null,null,null,null,null,null,null,null,null,null,null,null,null,null,null,null,null,null,null,null,null,null,null,""]
[null,null,null,null,null,null,null,null,null,null,null,null,null,null,null,null,null,null,null,null,null,null,null,""]
[null,null,null,null,null,null,null,null,null,null,null,null,null,null,null,null,null,null,null,null,null,null,null,""]
[null,null,null,null,null,null,null,null,null,null,null,null,null,null,null,null,null,null,null,null,null,null,null,""]
[null,null,null,null,null,null,null,null,null,null,null,null,null,null,null,null,null,null,null,null,null,null,null,""]
[null,null,null,null,null,null,null,null,null,null,null,null,null,null,null,null,null,null,null,null,null,null,null,""]
[null,null,null,null,null,null,null,null,null,null,null,null,null,null,null,null,null,null,null,null,null,null,null,""]
[null,null,null,null,null,null,null,null,null,null,null,null,null,null,null,null,null,null,null,null,null,null,null,""]
[null,null,null,null,null,null,null,null,null,null,null,null,null,null,null,null,null,null,null,null,null,null,null,""]
[null,null,null,null,null,null,null,null,null,null,null,null,null,null,null,null,null,null,null,null,null,null,null,""]
[null,null,null,null,null,null,null,null,null,null,null,null,null,null,null,null,null,null,null,null,null,null,null,""]
[null,null,null,null,null,null,null,null,null,null,null,null,null,null,null,null,null,null,null,null,null,null,null,""]
[null,null,null,null,null,null,null,null,null,null,null,null,null,null,null,null,null,null,null,null,null,null,null,""]
[null,null,null,null,null,null,null,null,null,null,null,null,null,null,null,null,null,null,null,null,null,null,null,""]
[null,null,null,null,null,null,null,null,null,null,null,null,null,null,null,null,null,null,null,null,null,null,null,""]
[null,null,null,null,null,null,null,null,null,null,null,null,null,null,null,null,null,null,null,null,null,null,null,""]
[null,null,null,null,null,null,null,null,null,null,null,null,null,null,null,null,null,null,null,null,null,null,null,""]
[null,null,null,null,null,null,null,null,null,null,null,null,null,null,null,null,null,null,null,null,null,null,null,""]
[null,null,null,null,null,null,null,null,null,null,null,null,null,null,null,null,null,null,null,null,null,null,null,""]
[null,null,null,null,null,null,null,null,null,null,null,null,null,null,null,null,null,null,null,null,null,null,null,""]
[null,null,null,null,null,null,null,null,null,null,null,null,null,null,null,null,null,null,null,null,null,null,null,""]
[null,null,null,null,null,null,null,null,null,null,null,null,null,null,null,null,null,null,null,null,null,null,null,""]
[null,null,null,null,null,null,null,null,null,null,null,null,null,null,null,null,null,null,null,null,null,null,null,{"$f":"IF(E130=\"Available \",A130,\"\")","v":""}]
[null,null,null,null,null,null,null,null,null,null,null,null,null,null,null,null,null,null,null,null,null,null,null,""]
[null,null,null,null,null,null,null,null,null,null,null,null,null,null,null,null,null,null,null,null,null,null,null,""]
[null,null,null,null,null,null,null,null,null,null,null,null,null,null,null,null,null,null,null,null,null,null,null,""]
[null,null,null,null,null,null,null,null,null,null,null,null,null,null,null,null,null,null,null,null,null,null,null,""]
[null,null,null,null,null,null,null,null,null,null,null,null,null,null,null,null,null,null,null,null,null,null,null,""]
[null,null,null,null,null,null,null,null,null,null,null,null,null,null,null,null,null,null,null,null,null,null,null,""]
[null,null,null,null,null,null,null,null,null,null,null,null,null,null,null,null,null,null,null,null,null,null,null,""]
[null,null,null,null,null,null,null,null,null,null,null,null,null,null,null,null,null,null,null,null,null,null,null,""]
[null,null,null,null,null,null,null,null,null,null,null,null,null,null,null,null,null,null,null,null,null,null,null,""]
[null,null,null,null,null,null,null,null,null,null,null,null,null,null,null,null,null,null,null,null,null,null,null,""]
[null,null,null,null,null,null,null,null,null,null,null,null,null,null,null,null,null,null,null,null,null,null,null,""]
[null,null,null,null,null,null,null,null,null,null,null,null,null,null,null,null,null,null,null,null,null,null,null,""]
[null,null,null,null,null,null,null,null,null,null,null,null,null,null,null,null,null,null,null,null,null,null,null,""]
[null,null,null,null,null,null,null,null,null,null,null,null,null,null,null,null,null,null,null,null,null,null,null,""]
[null,null,null,null,null,null,null,null,null,null,null,null,null,null,null,null,null,null,null,null,null,null,null,""]
[null,null,null,null,null,null,null,null,null,null,null,null,null,null,null,null,null,null,null,null,null,null,null,""]
[null,null,null,null,null,null,null,null,null,null,null,null,null,null,null,null,null,null,null,null,null,null,null,""]
[null,null,null,null,null,null,null,null,null,null,null,null,null,null,null,null,null,null,null,null,null,null,null,""]
[null,null,null,null,null,null,null,null,null,null,null,null,null,null,null,null,null,null,null,null,null,null,null,""]
[null,null,null,null,null,null,null,null,null,null,null,null,null,null,null,null,null,null,null,null,null,null,null,""]
[null,null,null,null,null,null,null,null,null,null,null,null,null,null,null,null,null,null,null,null,null,null,null,""]
[null,null,null,null,null,null,null,null,null,null,null,null,null,null,null,null,null,null,null,null,null,null,null,""]
[null,null,null,null,null,null,null,null,null,null,null,null,null,null,null,null,null,null,null,null,null,null,null,""]
[null,null,null,null,null,null,null,null,null,null,null,null,null,null,null,null,null,null,null,null,null,null,null,""]
[null,null,null,null,null,null,null,null,null,null,null,null,null,null,null,null,null,null,null,null,null,null,null,""]
[null,null,null,null,null,null,null,null,null,null,null,null,null,null,null,null,null,null,null,null,null,null,null,""]
[null,null,null,null,null,null,null,null,null,null,null,null,null,null,null,null,null,null,null,null,null,null,null,""]
[null,null,null,null,null,null,null,null,null,null,null,null,null,null,null,null,null,null,null,null,null,null,null,""]
[null,null,null,null,null,null,null,null,null,null,null,null,null,null,null,null,null,null,null,null,null,null,null,""]
[null,null,null,null,null,null,null,null,null,null,null,null,null,null,null,null,null,null,null,null,null,null,null,""]
[null,null,null,null,null,null,null,null,null,null,null,null,null,null,null,null,null,null,null,null,null,null,null,""]
[null,null,null,null,null,null,null,null,null,null,null,null,null,null,null,null,null,null,null,null,null,null,null,{"$f":"IF(E162=\"Available \",A162,\"\")","v":""}]
[null,null,null,null,null,null,null,null,null,null,null,null,null,null,null,null,null,null,null,null,null,null,null,""]
[null,null,null,null,null,null,null,null,null,null,null,null,null,null,null,null,null,null,null,null,null,null,null,""]
[null,null,null,null,null,null,null,null,null,null,null,null,null,null,null,null,null,null,null,null,null,null,null,""]
[null,null,null,null,null,null,null,null,null,null,null,null,null,null,null,null,null,null,null,null,null,null,null,""]
[null,null,null,null,null,null,null,null,null,null,null,null,null,null,null,null,null,null,null,null,null,null,null,""]
[null,null,null,null,null,null,null,null,null,null,null,null,null,null,null,null,null,null,null,null,null,null,null,""]
[null,null,null,null,null,null,null,null,null,null,null,null,null,null,null,null,null,null,null,null,null,null,null,""]
[null,null,null,null,null,null,null,null,null,null,null,null,null,null,null,null,null,null,null,null,null,null,null,""]
[null,null,null,null,null,null,null,null,null,null,null,null,null,null,null,null,null,null,null,null,null,null,null,""]
[null,null,null,null,null,null,null,null,null,null,null,null,null,null,null,null,null,null,null,null,null,null,null,""]
[null,null,null,null,null,null,null,null,null,null,null,null,null,null,null,null,null,null,null,null,null,null,null,""]
[null,null,null,null,null,null,null,null,null,null,null,null,null,null,null,null,null,null,null,null,null,null,null,""]
[null,null,null,null,null,null,null,null,null,null,null,null,null,null,null,null,null,null,null,null,null,null,null,""]
[null,null,null,null,null,null,null,null,null,null,null,null,null,null,null,null,null,null,null,null,null,null,null,""]
[null,null,null,null,null,null,null,null,null,null,null,null,null,null,null,null,null,null,null,null,null,null,null,""]
[null,null,null,null,null,null,null,null,null,null,null,null,null,null,null,null,null,null,null,null,null,null,null,""]
[null,null,null,null,null,null,null,null,null,null,null,null,null,null,null,null,null,null,null,null,null,null,null,""]
[null,null,null,null,null,null,null,null,null,null,null,null,null,null,null,null,null,null,null,null,null,null,null,""]
[null,null,null,null,null,null,null,null,null,null,null,null,null,null,null,null,null,null,null,null,null,null,null,""]